Workbook

Sheet Eff Jul 23 - Continuing FT
C1: Column to look up the Salary Plan Year | E1: 12 | F1: Version | G1: 2020-11-11
C2: Salary Admin Plan Code | E2: =IF($E21="Agreed Salary","Agreed Salary",IF($E$21="Director of Studies",$E$21&"__"&E24,VLOOKUP($E$22,BE_Lookup!$E$4:$F$8,2,FALSE))) -> 
C3: Salary Step Lookup | E3: =VLOOKUP($E$2&"_"&$E$23, BE_Lookup!$E$19:$F$42, 2, FALSE) -> 
C4: Salary Plan Lookup | E4: =$E$2&"_"&$E$23&"_"&$E$24 -> 
C5: FTE
C6: Annual Leave Loading Cap | D6: HEO_HEO Level 9_1 | E6: =VLOOKUP($D$6, Lookup_SalaryPlan, $E$1, FALSE) -> 123881 | F6: =AnnualLeaveLoadingCap*1.31% -> 1622.8411
B8: THE UNIVERSITY OF ADELAIDE
B9: SALARY ONCOST CALCULATION SCHEDULE for Continuing and Fixed Term
B11: The following table can be used for grant applications and general salary cost estimates for both
B12: Academic and Professional staff (with salary rate effective 1 July 2023 and superannuation rate increases to 17% for Fixed Term Contract with effect from July 2022):
B14: Quick Total Cost calculation : Where no additional Loadings, use :
C15: 2020 | F15: ((A) + (B)) * (1 + 18.61%)
C16: With effect from July 2023 | F16: ((A) + (B)) * (1 + 27.0462%)
B18: To use this table, please select / enter annual salary / percentages / fixed value in the red box
C20: Salary Plan Year | E20: 2023
C21: Academic / Professional/ Agreed Salary
C22: Sub-type
C23: Classification
C24: Salary Step
C26: Clinical Loading:
C27: ELT Allowance:
C28: Agreed Salary Amount : Note: Future increases for agreed salary are not taken into consideration in the calculation.
C29: FTE
C30: [FTE should be >0 and <1]
F34: Continuing /
F35: Fixed Term Contract
B37: ="Annual salary at "&TEXT(E20,"0")&" rate (A)" -> Annual salary at 2023 rate (A) | D37: (A) | F37: =IFERROR(VLOOKUP($E4,Lookup_SalaryPlan,$E$1,FALSE)*$E$29,"") -> 
C39: Annual Leave Loading | D39: (B) | E39: =17.5%/52*4 -> 0.01346153846 | F39: =IFERROR(IF(F$37="", 0, IF(F$37>AnnualLeaveLoadingCap, AnnualLeaveLoadingCap*E39, F$37*E39)),"") -> 0
C40: ="[calculated on Current Annual Salary capped at HEO9 step 1 (" & TEXT(AnnualLeaveLoadingCap, "$0,000.00")&") for " & TEXT(E20,"0") & "]" -> [calculated on Current Annual Salary capped at HEO9 step 1 ($123,881.00) for 2023]
C42: Loadings | D42: (C)
C43: =IF(AND($E$26="", $E$27=""), "", IF($E$26<>"", $E$26, $E$27)) ->  | F43: =IFERROR(IF($C43="No Loading", 0, VLOOKUP(("__"&$C43), Lookup_SalaryPlan, $E1, FALSE)*$E$29),0) -> 0
C44: Non-superannuable Discretionary Loadings | F44: =IF(E44="",0, E44) -> 0
C45: [for example, attraction / retention and responsibility loadings]
B46: Estimated Annual Salary | F46: =IFERROR(F$37+F$39+F$43+F$44,"") -> 
B48: Oncosts
C49: Long Service Leave Provision | D49: (D) | E49: 0.0325 | F49: =IFERROR(+(F$46-F$39)*E49,"") -> 
C50: [calculated on 'Estimated Annual Salary' less 'Annual Leave Loading']
C52: Superannuation | D52: (E) | E52: =IFERROR(VLOOKUP($E20, Lookup_SuperRate, 2, FALSE),"") -> 0.17 | F52: =IFERROR((F$46-F$44-F$39)*E52,"") -> 
C53: [calculated on 'Estimated Annual Salary' less non-superannuable discretionary loading']
C55: Payroll Tax | D55: (F) | E55: 0.0495 | F55: =IFERROR((F$46+F$52)*E55,"") -> 
C56: [calculated on 'Estimated Annual Salary' plus 'Superannuation']
C58: Workers Compensation | D58: (G) | E58: 0.005 | F58: =IFERROR((F$46+F52)*E58,"") -> 
C59: [calculated on 'Estimated Annual Salary plus Superannuation'']
C61: Total Oncosts | F61: =SUM(F$49,F$52,F$55,F$58) -> 0
B63: TOTAL ESTIMATED SALARY & ONCOSTS | F63: =IFERROR(F$46+F$61,"") -> 

Sheet Eff Jul 23 - Casual
C1: Column to look up the Salary Plan Year | E1: =HLOOKUP($E$20, Lookup_SalaryYr, 3, FALSE) -> 12 | F1: Version | G1: ='Eff Jul 23 - Continuing FT'!$G$1 -> 2020-11-11
C2: Salary Admin Plan Code | E2: =IF($E21="Agreed Salary","Agreed Salary",IF($E$21="Director of Studies",$E$21&"__"&E24,VLOOKUP($E$22,BE_Lookup!$E$4:$F$8,2,FALSE))) -> 
C3: Salary Step Lookup | E3: =VLOOKUP($E$2&"_"&$E$23, BE_Lookup!$E$19:$F$42, 2, FALSE) -> 
C4: Salary Plan Lookup | E4: =$E$2&"_"&$E$23&"_"&$E$24 -> 
C5: FTE
C6: Annual Leave Loading Cap | D6: HEO_HEO Level 9_1 | E6: =VLOOKUP($D$6, Lookup_SalaryPlan, $E$1, FALSE) -> 123881 | F6: =AnnualLeaveLoadingCap*1.31% -> 1622.8411
B8: THE UNIVERSITY OF ADELAIDE
B9: SALARY ONCOST CALCULATION SCHEDULE for CASUAL
B11: The following table can be used for grant applications and general salary cost estimates for both
B12: Academic and Professional staff (with superannuation rate increases to 10.5% for casual with effect from July 2022):
B14: Quick Total Cost calculation : Where no additional Loadings, use :
C15: 2020 | F15: ((A) + (B)) * (1 + 15.42%)
C16: With effect from July 2023 | F16: ((A) + (B)) * (1 + 15.945%)
B18: To use this table, please select / enter annual salary / percentages / fixed value in the red box
C20: Salary Plan Year | E20: 2023
C21: Academic / Professional/ Agreed Salary
C22: Sub-type
C23: Classification
C24: Salary Step
C26: Clinical Loading:
C27: ELT Allowance:
C28: Agreed Salary Amount:
C29: FTE
F34: Casuals
B37: ="Annual salary at "& TEXT(E20,"0") &" rate (A)" -> Annual salary at 2023 rate (A) | D37: (A)
C39: Casual loading in lieu of paid leave | D39: (B) | E39: 0.25 | F39: =IFERROR(F$37*E39,"") -> 0
C40: =IF(AND($E$26="", $E$27=""), "", IF($E$26<>"", $E$26, $E$27)) ->  | F40: =IF(E40="",0, E40) -> 0
C41: Other Loadings | F41: =IF(E41="",0, E41) -> 0
C42: [for example, attraction / retention and responsibility loadings]
B43: Estimated Annual Salary | F43: =IFERROR(F$37+F$39,"") -> 0
B45: Oncosts
C47: Superannuation | D47: (C) | E47: =IFERROR(VLOOKUP($E20, Lookup_SuperRate, 4, FALSE),"") -> 0.11 | F47: =IFERROR(F$43*E47,"") -> 0
C48: [calculated on 'Estimated Annual Salary' ]
C50: Payroll Tax | D50: (D) | E50: 0.0495 | F50: =IFERROR((F$43+F$47)*E50,"") -> 0
C51: [calculated on 'Estimated Annual Salary' plus 'Superannuation']
C53: Workers Compensation | D53: (E) | E53: 0.005 | F53: =IFERROR((F$43+F47)*E53,"") -> 0
C54: [calculated on 'Estimated Annual Salary plus superannuation']
C56: Total Oncosts | F56: =SUM(F$47,F$50,F$53) -> 0
B58: TOTAL ESTIMATED SALARY & ONCOSTS | F58: =IFERROR(F$43+F$56,"") -> 0

Sheet Ref (9.5) eff Jul 21 - FT Con (hidden)
D1: SALARY COST CALCULATION REFERENCE SHEET
B2: SALARY | D2: [example below based on permanent staff appointment at HEO10 step 1, FTE = 1 in 2021.]
B4: Annual salary | C4: (A) | D4: 128731 | E4: Obtained from "Salary Scales" schedule provide by Human Resources on web.
E5: It does not include annual leave loading.
B7: Gross salary including EB | C7: b | D7: =D4*1.02 -> 131305.62 | E7: calculated by a x 1.02
E8: As an example, this assumes an increase of 2% on current salary scales.
B10: 48 weeks | C10: h | D10: =D4*48/52 -> 118828.6154 | E10: calculated by b x 48/52
E11: Calculated by 48/52 x Gross excl A/L/L, incl EB.
B14: Annual Leave Loading | C14: (B) | D14: =IF(D$4>AnnualLeaveLoadingCap, AnnualLeaveLoadingCap*1.35%, D$4*1.35%) -> 1672.3935 | E14: calculated by (A) x 1.35% capped at HEO9 step 1 of the respective year
E15: As per EA 4.1.4.1 A staff member will be entitled to payment of an annual leave loading of 17.5% of four (4) weeks of their salary that will be capped at the Higher Education Officer Level 9 step 1 except where shift and penalty rates would be greater.
E16: 1.35% is calculated based on 17%/52*4
E17: Annual leave loading is paid to all staff in first pay in December.
B19: Loadings | C19: (C) | E19: Superannuable loadings:- Academic Loadings, English Language Teacher (ELT) Allowances
E20: Non Superannuable loadings - Any discretionary loadings (eg. attraction / retention and responsibility loadings) when a staff receives full super at 17%
B21: ONCOSTS
B23: Annual Leave Provision | D23: =D4*0.1143 -> 14713.9533 | E23: calculated by h x 11.43%
E24: Annual leave is 4 weeks per year = 7.69% of 52 weeks[4/52]; A/L/L is 1.3% for budget purposes; a total of 8.99%.
E25: However the oncost will be calculated on the 48 weeks and so increase to 8.99 X 52/48 = 9.7392%
E26: but since annual leave is usually taken after it accumulates, at a higher salary, an 'inflation' factor of 2% increases the provision to 9.93% [9.7392 x 1.02].
E27: All salary oncosts are charged to the Provision account when leave is taken; therefore the annual leave provision must include oncosts.
E28: AL andLSL oncosts are already loaded and so superannuation, payroll tax & workers' compensation oncosts for 4 weeks is averaged at 1.5% due to different super rates.
E29: (max = [[17%+4.95%+0.5%]/52]X4=1.8%; min [[9.5%+4.95%+0.5%]/52]X4=1.2%)
B31: Long Service Leave Provision | C31: (D) | D31: =D10*0.0325 -> 3861.93 | E31: calculated by (A) x 3.25%
E32: Long service leave is 6.5 week days per year = 6.5/261 = 2.49%
E33: however the oncost will be charged on the 48 weeks and so increase to 2.49 X 52/48 = 2.70%
E34: Since long service leave is usually taken well after it accumulates, at a higher salary, an 'inflation' factor of 30% increases the provision to 3.25% [2.49% x 1.3].
B36: Superannuation | C36: (E) | D36: =SUM(D4,D14,D19)*17% -> 22168.5769 | E36: calculated by (Sum of (A), (B), ( C ) excluding non-superannuable loadings)x 17%
E37: For 2022, 17% for continuing and fixed term staff and Superannuation Guarantee Levy (SGL)10.5% for casual staff.
E38: The budget exercise assumes all State Super and Scheme A staff are charged at either the 10.5% or the 17%
E39: Approx. 20 people are non UniSuper scheme which is 12% + 3% = 15%; but for budget purposes will be calculated at 17%
E40: SGL is 10.5%.
E41: Superannuation is also applicable to leave loading (SGR 2009/2)
E42: With effect from July 2022, superannuation will be 17% for both continuing and fixed term contract; 10.5% for casual staff.
B44: Payroll Tax | C44: (F) | D44: =(D4+D36+D14)*0.0495 -> 7552.312535 | E44: calculated by (Sum of (A), (B), ( C ) and superannuation)x 4.95%
E45: Payable on on all gross salaries plus Annual Leave Loading (A/L/L) + loadings/overtime + superannuation.
E46: Payable to and based on State Government payroll tax rate of 4.95%.
B48: Workers Compensation | C48: (G) | D48: =(D4+D14)*0.005 -> 652.0169675 | E48: calculated by (Sum of (A), (B), ( C ))x 0.5%
E49: Payable on all staff including operating budgets which were previously exempt.
E50: Payable on on all gross salaries plus Annual Leave Loading (A/L/L) + loadings/overtime.
E51: 0.5% is an internal calculation to provide appropriate funding to UniSure Pty Ltd ( a University self-insurance company)
B53: TOTAL COST | D53: =+D48+D44+D36+D31+D14+D4 -> 164638.2299 | E53: calculated by a+b+c+d+e+f+g
B55: Glossary of Terms
B56: AL: annual leave
B57: LSL: long service leave
B58: A/L/L: annual leave loading
B59: SGC: Superannuation Guarantee Charge
B60: EB: refers to an increase approximating that established by the University's Enterprise Agreement

Sheet BE_Salary Plan (hidden)
B1: Lookup_SalaryPlan | G1: 2017 | H1: 2018 | I1: 2019 | J1: 2020 | K1: 2021 | L1: 2022 | M1: 2023 | N1: 2024 | O1: 2025 | P1: 2026 | Q1: 2027
B3: 1 | C3: 2 | D3: 3 | E3: 4 | F3: 5 | G3: 6 | H3: 7 | I3: 8 | J3: 9 | K3: 10 | L3: 11 | M3: 12
B5: Conca | C5: Salary Grade Code | D5: Salary Admin Plan Code | E5: Salary Grade | F5: STEP | G5: Administrative Increase on 31 March 2017 (3% increase) | H5: Administrative Increase on 31 March 2018 ($2000 flat rate increase) | I5: Administrative Increase on 31 March 2019 (1.5% increase) | J5: Administrative Increase on 31 March 2020 (1.5% increase + $400 Flat Rate) | K5: Administrative Increase on 31 March 2021 (1.5% increase) | L5: Administrative Increase effective 2 July 2022 (2% increase) | M5: Administrative Increase Effective 1 July 2023 (4.2% Increase)
B6: =D6&"_"&E6&"_"&F6 -> ACA_LEVEL A_1 | C6: 251 | D6: ACA | E6: LEVEL A | F6: 1 | G6: 65894 | H6: 67894 | I6: 68912 | J6: 70346 | K6: 71401 | L6: 72829 | M6: 75888
B7: =D7&"_"&E7&"_"&F7 -> ACA_LEVEL A_2 | C7: 251 | D7: ACA | E7: LEVEL A | F7: 2 | G7: 69662 | H7: 71662 | I7: 72737 | J7: 74228 | K7: 75341 | L7: 76848 | M7: 80076
B8: ACA_LEVEL A_3 | C8: 251 | D8: ACA | E8: LEVEL A | F8: 3 | G8: 73423 | H8: 75423 | I8: 76554 | J8: 78102 | K8: 79274 | L8: 80859 | M8: 84255
B9: ACA_LEVEL A_4 | C9: 251 | D9: ACA | E9: LEVEL A | F9: 4 | G9: 77187 | H9: 79187 | I9: 80375 | J9: 81981 | K9: 83211 | L9: 84875 | M9: 88440
B10: ACA_LEVEL A_5 | C10: 251 | D10: ACA | E10: LEVEL A | F10: 5 | G10: 80246 | H10: 82246 | I10: 83480 | J10: 85132 | K10: 86409 | L10: 88137 | M10: 91839
B11: ACA_LEVEL A_6 | C11: 251 | D11: ACA | E11: LEVEL A | F11: 6 | G11: 83307 | H11: 85307 | I11: 86587 | J11: 88286 | K11: 89610 | L11: 91402 | M11: 95241
B12: ACA_LEVEL A_7 | C12: 251 | D12: ACA | E12: LEVEL A | F12: 7 | G12: 86368 | H12: 88368 | I12: 89694 | J12: 91439 | K12: 92811 | L12: 94667 | M12: 98643
B13: ACA_LEVEL A_8 | C13: 251 | D13: ACA | E13: LEVEL A | F13: 8 | G13: 89425 | H13: 91425 | I13: 92796 | J13: 94588 | K13: 96007 | L13: 97927 | M13: 102040
B14: ACA_LEVEL B_1 | C14: 241 | D14: ACA | E14: LEVEL B | F14: 1 | G14: 94135 | H14: 96135 | I14: 97577 | J14: 99441 | K14: 100933 | L14: 102952 | M14: 107276
B15: ACA_LEVEL B_2 | C15: 241 | D15: ACA | E15: LEVEL B | F15: 2 | G15: 97666 | H15: 99666 | I15: 101161 | J15: 103078 | K15: 104624 | L15: 106716 | M15: 111198
B16: ACA_LEVEL B_3 | C16: 241 | D16: ACA | E16: LEVEL B | F16: 3 | G16: 101190 | H16: 103190 | I16: 104738 | J16: 106709 | K16: 108310 | L16: 110476 | M16: 115116
B17: ACA_LEVEL B_4 | C17: 241 | D17: ACA | E17: LEVEL B | F17: 4 | G17: 104724 | H17: 106724 | I17: 108325 | J17: 110350 | K17: 112005 | L17: 114245 | M17: 119043
B18: ACA_LEVEL B_5 | C18: 241 | D18: ACA | E18: LEVEL B | F18: 5 | G18: 108251 | H18: 110251 | I18: 111905 | J18: 113984 | K18: 115694 | L18: 118008 | M18: 122964
B19: ACA_LEVEL B_6 | C19: 241 | D19: ACA | E19: LEVEL B | F19: 6 | G19: 111788 | H19: 113788 | I19: 115495 | J19: 117627 | K19: 119391 | L19: 121779 | M19: 126894
B20: ACA_LEVEL C_1 | C20: 231 | D20: ACA | E20: LEVEL C | F20: 1 | G20: 115310 | H20: 117310 | I20: 119070 | J20: 121256 | K20: 123075 | L20: 125537 | M20: 130810
B21: ACA_LEVEL C_2 | C21: 231 | D21: ACA | E21: LEVEL C | F21: 2 | G21: 118843 | H21: 120843 | I21: 122656 | J21: 124896 | K21: 126769 | L21: 129304 | M21: 134735
B22: ACA_LEVEL C_3 | C22: 231 | D22: ACA | E22: LEVEL C | F22: 3 | G22: 122370 | H22: 124370 | I22: 126236 | J22: 128530 | K22: 130458 | L22: 133067 | M22: 138656
B23: ACA_LEVEL C_4 | C23: 231 | D23: ACA | E23: LEVEL C | F23: 4 | G23: 125899 | H23: 127899 | I23: 129817 | J23: 132164 | K23: 134146 | L23: 136829 | M23: 142576
B24: ACA_LEVEL C_5 | C24: 231 | D24: ACA | E24: LEVEL C | F24: 5 | G24: 129429 | H24: 131429 | I24: 133400 | J24: 135801 | K24: 137838 | L24: 140595 | M24: 146500
B25: ACA_LEVEL C_6 | C25: 231 | D25: ACA | E25: LEVEL C | F25: 6 | G25: 132966 | H25: 134966 | I25: 136990 | J25: 139445 | K25: 141537 | L25: 144368 | M25: 150431
B26: ACA_LEVEL D_1 | C26: 221 | D26: ACA | E26: LEVEL D | F26: 1 | G26: 138845 | H26: 140845 | I26: 142958 | J26: 145502 | K26: 147685 | L26: 150639 | M26: 156966
B27: ACA_LEVEL D_2 | C27: 221 | D27: ACA | E27: LEVEL D | F27: 2 | G27: 143549 | H27: 145549 | I27: 147732 | J27: 150348 | K27: 152603 | L27: 155655 | M27: 162193
B28: ACA_LEVEL D_3 | C28: 221 | D28: ACA | E28: LEVEL D | F28: 3 | G28: 148263 | H28: 150263 | I28: 152517 | J28: 155205 | K28: 157533 | L28: 160684 | M28: 167433
B29: ACA_LEVEL D_4 | C29: 221 | D29: ACA | E29: LEVEL D | F29: 4 | G29: 152965 | H29: 154965 | I29: 157289 | J29: 160048 | K29: 162449 | L29: 165698 | M29: 172657
B30: ACA_LEVEL E_1 | C30: 211 | D30: ACA | E30: LEVEL E | F30: 1 | G30: 178851 | H30: 180851 | I30: 183564 | J30: 186717 | K30: 189518 | L30: 193308 | M30: 201427
B31: __Clinical | F31: Clinical | G31: 30957 | H31: 31421 | I31: 31892 | J31: 32380 | K31: 32866 | L31: 33523 | M31: 34931
B32: __Para-Clinical | F32: Para-Clinical | G32: 20672 | H32: 20982 | I32: 21297 | J32: 21623 | K32: 21947 | L32: 22386 | M32: 23326
B33: __Pre-Clinical | F33: Pre-Clinical | G33: 15503 | H33: 15736 | I33: 15972 | J33: 16216 | K33: 16459 | L33: 16788 | M33: 17493
B34: __Dental | F34: Dental | G34: 15503 | H34: 15736 | I34: 15972 | J34: 16216 | K34: 16459 | L34: 16788 | M34: 17493
B35: HEO_HEO Level 1_1 | C35: 010 | D35: HEO | E35: HEO Level 1 | F35: 1 | G35: 31998 | H35: 33998 | I35: 34508 | J35: 35426 | K35: 35957 | L35: 36676 | M35: 38216
B36: HEO_HEO Level 1_2 | C36: 010 | D36: HEO | E36: HEO Level 1 | F36: 2 | G36: 37026 | H36: 39026 | I36: 39611 | J36: 40605 | K36: 41214 | L36: 42038 | M36: 43804
B37: HEO_HEO Level 1_3 | C37: 010 | D37: HEO | E37: HEO Level 1 | F37: 3 | G37: 41598 | H37: 43598 | I37: 44252 | J37: 45316 | K37: 45996 | L37: 46916 | M37: 48886
B38: HEO_HEO Level 1_4 | C38: 010 | D38: HEO | E38: HEO Level 1 | F38: 4 | G38: 45712 | H38: 47712 | I38: 48428 | J38: 49554 | K38: 50297 | L38: 51303 | M38: 53458
B39: HEO_HEO Level 1_5 | C39: 010 | D39: HEO | E39: HEO Level 1 | F39: 5 | G39: 46227 | H39: 48227 | I39: 48950 | J39: 50084 | K39: 50835 | L39: 51852 | M39: 54030
B40: HEO_HEO Level 1_6 | C40: 010 | D40: HEO | E40: HEO Level 1 | F40: 6 | G40: 47006 | H40: 49006 | I40: 49741 | J40: 50887 | K40: 51650 | L40: 52683 | M40: 54896
B41: HEO_HEO Level 1_7 | C41: 010 | D41: HEO | E41: HEO Level 1 | F41: 7 | G41: 47784 | H41: 49784 | I41: 50531 | J41: 51689 | K41: 52464 | L41: 53513 | M41: 55761
B42: HEO_HEO Level 2_1 | C42: 020 | D42: HEO | E42: HEO Level 2 | F42: 1 | G42: 34539 | H42: 36539 | I42: 37087 | J42: 38043 | K42: 38614 | L42: 39386 | M42: 41040
B43: HEO_HEO Level 2_2 | C43: 020 | D43: HEO | E43: HEO Level 2 | F43: 2 | G43: 39969 | H43: 41969 | I43: 42599 | J43: 43638 | K43: 44293 | L43: 45179 | M43: 47077
B44: HEO_HEO Level 2_3 | C44: 020 | D44: HEO | E44: HEO Level 2 | F44: 3 | G44: 44902 | H44: 46902 | I44: 47606 | J44: 48720 | K44: 49451 | L44: 50440 | M44: 52558
B45: HEO_HEO Level 2_4 | C45: 020 | D45: HEO | E45: HEO Level 2 | F45: 4 | G45: 49342 | H45: 51342 | I45: 52112 | J45: 53294 | K45: 54093 | L45: 55175 | M45: 57492
B46: HEO_HEO Level 2_5 | C46: 020 | D46: HEO | E46: HEO Level 2 | F46: 5 | G46: 50383 | H46: 52383 | I46: 53169 | J46: 54367 | K46: 55183 | L46: 56287 | M46: 58651
B47: HEO_HEO Level 2_6 | C47: 020 | D47: HEO | E47: HEO Level 2 | F47: 6 | G47: 51422 | H47: 53422 | I47: 54223 | J47: 55436 | K47: 56268 | L47: 57393 | M47: 59804
B48: HEO_HEO Level 2_7 | C48: 020 | D48: HEO | E48: HEO Level 2 | F48: 7 | G48: 52457 | H48: 54457 | I48: 55274 | J48: 56503 | K48: 57351 | L48: 58498 | M48: 60955
B49: HEO_HEO Level 3_1 | C49: 030 | D49: HEO | E49: HEO Level 3 | F49: 1 | G49: 36359 | H49: 38359 | I49: 38934 | J49: 39918 | K49: 40517 | L49: 41327 | M49: 43063
B50: HEO_HEO Level 3_2 | C50: 030 | D50: HEO | E50: HEO Level 3 | F50: 2 | G50: 42072 | H50: 44072 | I50: 44733 | J50: 45804 | K50: 46491 | L50: 47421 | M50: 49413
B51: HEO_HEO Level 3_3 | C51: 030 | D51: HEO | E51: HEO Level 3 | F51: 3 | G51: 47266 | H51: 49266 | I51: 50005 | J51: 51155 | K51: 51922 | L51: 52960 | M51: 55184
B52: HEO_HEO Level 3_4 | C52: 030 | D52: HEO | E52: HEO Level 3 | F52: 4 | G52: 51941 | H52: 53941 | I52: 54750 | J52: 55971 | K52: 56811 | L52: 57947 | M52: 60381
B53: HEO_HEO Level 3_5 | C53: 030 | D53: HEO | E53: HEO Level 3 | F53: 5 | G53: 53757 | H53: 55757 | I53: 56593 | J53: 57842 | K53: 58710 | L53: 59884 | M53: 62399
B54: HEO_HEO Level 3_6 | C54: 030 | D54: HEO | E54: HEO Level 3 | F54: 6 | G54: 55580 | H54: 57580 | I54: 58444 | J54: 59721 | K54: 60617 | L54: 61829 | M54: 64426
B55: HEO_HEO Level 3_7 | C55: 030 | D55: HEO | E55: HEO Level 3 | F55: 7 | G55: 57397 | H55: 59397 | I55: 60288 | J55: 61592 | K55: 62516 | L55: 63766 | M55: 66444
B56: HEO_HEO Level 3_8 | C56: 030 | D56: HEO | E56: HEO Level 3 | F56: 8 | G56: 59214 | H56: 61214 | I56: 62132 | J56: 63464 | K56: 64416 | L56: 65704 | M56: 68464
B57: HEO_HEO Level 4_1 | C57: 040 | D57: HEO | E57: HEO Level 4 | F57: 1 | G57: 59735 | H57: 61735 | I57: 62661 | J57: 64001 | K57: 64961 | L57: 66260 | M57: 69043
B58: HEO_HEO Level 4_2 | C58: 040 | D58: HEO | E58: HEO Level 4 | F58: 2 | G58: 61546 | H58: 63546 | I58: 64499 | J58: 65866 | K58: 66854 | L58: 68191 | M58: 71055
B59: HEO_HEO Level 4_3 | C59: 040 | D59: HEO | E59: HEO Level 4 | F59: 3 | G59: 63625 | H59: 65625 | I59: 66609 | J59: 68008 | K59: 69028 | L59: 70409 | M59: 73366
B60: HEO_HEO Level 4_4 | C60: 040 | D60: HEO | E60: HEO Level 4 | F60: 4 | G60: 65704 | H60: 67704 | I60: 68720 | J60: 70151 | K60: 71203 | L60: 72627 | M60: 75677
B61: HEO_HEO Level 5_1 | C61: 050 | D61: HEO | E61: HEO Level 5 | F61: 1 | G61: 67262 | H61: 69262 | I61: 70301 | J61: 71756 | K61: 72832 | L61: 74289 | M61: 77409
B62: HEO_HEO Level 5_2 | C62: 050 | D62: HEO | E62: HEO Level 5 | F62: 2 | G62: 69598 | H62: 71598 | I62: 72672 | J62: 74162 | K62: 75274 | L62: 76779 | M62: 80004
B63: HEO_HEO Level 5_3 | C63: 050 | D63: HEO | E63: HEO Level 5 | F63: 3 | G63: 72199 | H63: 74199 | I63: 75312 | J63: 76842 | K63: 77995 | L63: 79555 | M63: 82896
B64: HEO_HEO Level 5_4 | C64: 050 | D64: HEO | E64: HEO Level 5 | F64: 4 | G64: 75057 | H64: 77057 | I64: 78213 | J64: 79786 | K64: 80983 | L64: 82603 | M64: 86072
B65: HEO_HEO Level 5/6_1 | C65: 054 | D65: HEO | E65: HEO Level 5/6 | F65: 1 | G65: 61808 | H65: 63808 | I65: 64765 | J65: 66136 | K65: 67128 | L65: 68471 | M65: 71347
B66: HEO_HEO Level 5/6_2 | C66: 054 | D66: HEO | E66: HEO Level 5/6 | F66: 2 | G66: 63370 | H66: 65370 | I66: 66351 | J66: 67746 | K66: 68762 | L66: 70137 | M66: 73083
B67: HEO_HEO Level 5/6_3 | C67: 054 | D67: HEO | E67: HEO Level 5/6 | F67: 3 | G67: 64925 | H67: 66925 | I67: 67929 | J67: 69348 | K67: 70388 | L67: 71796 | M67: 74811
B68: HEO_HEO Level 5/6_4 | C68: 054 | D68: HEO | E68: HEO Level 5/6 | F68: 4 | G68: 75316 | H68: 77316 | I68: 78476 | J68: 80053 | K68: 81254 | L68: 82879 | M68: 86360
B69: HEO_HEO Level 5/6_5 | C69: 054 | D69: HEO | E69: HEO Level 5/6 | F69: 5 | G69: 77393 | H69: 79393 | I69: 80584 | J69: 82193 | K69: 83426 | L69: 85095 | M69: 88669
B70: HEO_HEO Level 5/6_6 | C70: 054 | D70: HEO | E70: HEO Level 5/6 | F70: 6 | G70: 79473 | H70: 81473 | I70: 82695 | J70: 84335 | K70: 85600 | L70: 87312 | M70: 90979
B71: =D71&"_"&E71&"_"&F71 -> HEO_HEO Level 5/6_7 | C71: 054 | D71: HEO | E71: HEO Level 5/6 | F71: 7 | G71: 81548 | H71: 83548 | I71: 84801 | J71: 86473 | K71: 87770 | L71: 89525 | M71: 93285
B72: HEO_HEO Level 6_1 | C72: 060 | D72: HEO | E72: HEO Level 6 | F72: 1 | G72: 75316 | H72: 77316 | I72: 78476 | J72: 80053 | K72: 81254 | L72: 82879 | M72: 86360
B73: HEO_HEO Level 6_2 | C73: 060 | D73: HEO | E73: HEO Level 6 | F73: 2 | G73: 77393 | H73: 79393 | I73: 80584 | J73: 82193 | K73: 83426 | L73: 85095 | M73: 88669
B74: HEO_HEO Level 6_3 | C74: 060 | D74: HEO | E74: HEO Level 6 | F74: 3 | G74: 79473 | H74: 81473 | I74: 82695 | J74: 84335 | K74: 85600 | L74: 87312 | M74: 90979
B75: HEO_HEO Level 6_4 | C75: 060 | D75: HEO | E75: HEO Level 6 | F75: 4 | G75: 81548 | H75: 83548 | I75: 84801 | J75: 86473 | K75: 87770 | L75: 89525 | M75: 93285
B76: HEO_HEO Level 7_1 | C76: 070 | D76: HEO | E76: HEO Level 7 | F76: 1 | G76: 83105 | H76: 85105 | I76: 86382 | J76: 88078 | K76: 89399 | L76: 91187 | M76: 95017
B77: HEO_HEO Level 7_2 | C77: 070 | D77: HEO | E77: HEO Level 7 | F77: 2 | G77: 85441 | H77: 87441 | I77: 88753 | J77: 90484 | K77: 91841 | L77: 93678 | M77: 97612
B78: HEO_HEO Level 7_3 | C78: 070 | D78: HEO | E78: HEO Level 7 | F78: 3 | G78: 88038 | H78: 90038 | I78: 91389 | J78: 93160 | K78: 94557 | L78: 96448 | M78: 100499
B79: HEO_HEO Level 7_4 | C79: 070 | D79: HEO | E79: HEO Level 7 | F79: 4 | G79: 90639 | H79: 92639 | I79: 94029 | J79: 95839 | K79: 97277 | L79: 99223 | M79: 103390
B80: HEO_HEO Level 7_5 | C80: 070 | D80: HEO | E80: HEO Level 7 | F80: 5 | G80: 93231 | H80: 95231 | I80: 96659 | J80: 98509 | K80: 99987 | L80: 101987 | M80: 106270
B81: HEO_HEO Level 8_1 | C81: 080 | D81: HEO | E81: HEO Level 8 | F81: 1 | G81: 93493 | H81: 95493 | I81: 96925 | J81: 98779 | K81: 100261 | L81: 102266 | M81: 106561
B82: HEO_HEO Level 8_2 | C82: 080 | D82: HEO | E82: HEO Level 8 | F82: 2 | G82: 96092 | H82: 98092 | I82: 99563 | J82: 101456 | K82: 102978 | L82: 105038 | M82: 109450
B83: HEO_HEO Level 8_3 | C83: 080 | D83: HEO | E83: HEO Level 8 | F83: 3 | G83: 98690 | H83: 100690 | I83: 102200 | J83: 104133 | K83: 105695 | L83: 107809 | M83: 112337
B84: HEO_HEO Level 8_4 | C84: 080 | D84: HEO | E84: HEO Level 8 | F84: 4 | G84: 101801 | H84: 103801 | I84: 105358 | J84: 107338 | K84: 108948 | L84: 111127 | M84: 115794
B85: HEO_HEO Level 8_5 | C85: 080 | D85: HEO | E85: HEO Level 8 | F85: 5 | G85: 105179 | H85: 107179 | I85: 108787 | J85: 110819 | K85: 112481 | L85: 114731 | M85: 119550
B86: HEO_HEO Level 9_1 | C86: 091 | D86: HEO | E86: HEO Level 9 | F86: 1 | G86: 109077 | H86: 111077 | I86: 112743 | J86: 114834 | K86: 116557 | L86: 118888 | M86: 123881
B87: HEO_HEO Level 9_2 | C87: 091 | D87: HEO | E87: HEO Level 9 | F87: 2 | G87: 112709 | H87: 114709 | I87: 116430 | J87: 118576 | K87: 120355 | L87: 122762 | M87: 127918
B88: HEO_HEO Level 9_3 | C88: 091 | D88: HEO | E88: HEO Level 9 | F88: 3 | G88: 116862 | H88: 118862 | I88: 120645 | J88: 122855 | K88: 124698 | L88: 127192 | M88: 132534
B89: HEO_HEO Level 10_1 | C89: 100 | D89: HEO | E89: HEO Level 10 | F89: 1 | G89: 120720 | H89: 122720 | I89: 124561 | J89: 126829 | K89: 128731 | L89: 131306 | M89: 136821
B90: HEO_HEO Level 10_2 | C90: 100 | D90: HEO | E90: HEO Level 10 | F90: 2 | G90: 124704 | H90: 126704 | I90: 128605 | J90: 130934 | K90: 132898 | L90: 135556 | M90: 141249
B91: HEO_HEO Level 10_3 | C91: 100 | D91: HEO | E91: HEO Level 10 | F91: 3 | G91: 128819 | H91: 130819 | I91: 132781 | J91: 135173 | K91: 137201 | L91: 139945 | M91: 145823
B92: SNR_Senior Manager 1_ | C92: 100 | D92: SNR | E92: Senior Manager 1 | G92: 138446 | H92: 140446 | I92: 142553 | J92: 145091 | K92: 147267 | L92: 150212 | M92: 156521
B93: SNR_Senior Manager 2_ | C93: 200 | D93: SNR | E93: Senior Manager 2 | G93: 155467 | H93: 157467 | I93: 159829 | J93: 162626 | K93: 165065 | L93: 168366 | M93: 175437
B94: SNR_Senior Manager 3_ | C94: 300 | D94: SNR | E94: Senior Manager 3 | G94: 166099 | H94: 168099 | I94: 170620 | J94: 173579 | K94: 176183 | L94: 179707 | M94: 187255
B95: ELT_English Language Teachers A-C_1 | C95: 102 | D95: ELT | E95: English Language Teachers A-C | F95: 1 | G95: 62177 | H95: 64177 | I95: 65140 | J95: 66517 | K95: 67515 | L95: 68865 | M95: 71757
B96: ELT_English Language Teachers A-C_2 | C96: 102 | D96: ELT | E96: English Language Teachers A-C | F96: 2 | G96: 63336 | H96: 65336 | I96: 66316 | J96: 67711 | K96: 68727 | L96: 70102 | M96: 73046
B97: ELT_English Language Teachers A-C_3 | C97: 102 | D97: ELT | E97: English Language Teachers A-C | F97: 3 | G97: 65656 | H97: 67656 | I97: 68671 | J97: 70101 | K97: 71153 | L97: 72576 | M97: 75624
B98: ELT_English Language Teachers A-C_4 | C98: 102 | D98: ELT | E98: English Language Teachers A-C | F98: 4 | G98: 68029 | H98: 70029 | I98: 71079 | J98: 72545 | K98: 73633 | L98: 75106 | M98: 78260
B99: ELT_English Language Teachers A-C_5 | C99: 102 | D99: ELT | E99: English Language Teachers A-C | F99: 5 | G99: 71725 | H99: 73725 | I99: 74831 | J99: 76353 | K99: 77498 | L99: 79048 | M99: 82368
B100: ELT_English Language Teachers A-C_6 | C100: 102 | D100: ELT | E100: English Language Teachers A-C | F100: 6 | G100: 74188 | H100: 76188 | I100: 77331 | J100: 78891 | K100: 80074 | L100: 81675 | M100: 85105
B101: ELT_English Language Teachers A-C_7 | C101: 102 | D101: ELT | E101: English Language Teachers A-C | F101: 7 | G101: 76651 | H101: 78651 | I101: 79831 | J101: 81428 | K101: 82649 | L101: 84302 | M101: 87843
B102: ELT_English Language Teachers A-C_8 | C102: 102 | D102: ELT | E102: English Language Teachers A-C | F102: 8 | G102: 79114 | H102: 81114 | I102: 82331 | J102: 83966 | K102: 85225 | L102: 86930 | M102: 90581
B103: ELT_English Language Teachers A-C_9 | C103: 102 | D103: ELT | E103: English Language Teachers A-C | F103: 9 | G103: 81826 | H103: 83826 | I103: 85083 | J103: 86759 | K103: 88060 | L103: 89821 | M103: 93593
B104: ELT_English Language Teachers A-C_10 | C104: 102 | D104: ELT | E104: English Language Teachers A-C | F104: 10 | G104: 85013 | H104: 87013 | I104: 88318 | J104: 90043 | K104: 91394 | L104: 93222 | M104: 97137
B105: ELT_English Language Teachers A-C_11 | C105: 102 | D105: ELT | E105: English Language Teachers A-C | F105: 11 | G105: 87984 | H105: 89984 | I105: 91334 | J105: 93104 | K105: 94501 | L105: 96391 | M105: 100439
B106: ELT_English Language Teachers A-C_12 | C106: 102 | D106: ELT | E106: English Language Teachers A-C | F106: 12 | G106: 90600 | H106: 92600 | I106: 93989 | J106: 95799 | K106: 97236 | L106: 99181 | M106: 103347
B107: Director of Studies__1 | D107: Director of Studies | F107: 1 | G107: 96092 | H107: 98092 | I107: 99563 | J107: 101456 | K107: 102978 | L107: 105038 | M107: 109450
B108: Director of Studies__2 | D108: Director of Studies | F108: 2 | G108: 98690 | H108: 100690 | I108: 102200 | J108: 104133 | K108: 105695 | L108: 107809 | M108: 112337
B109: Director of Studies__3 | D109: Director of Studies | F109: 3 | G109: 101801 | H109: 103801 | I109: 105358 | J109: 107338 | K109: 108948 | L109: 111127 | M109: 115794
B110: Director of Studies__4 | D110: Director of Studies | F110: 4 | G110: 105179 | H110: 107179 | I110: 108787 | J110: 110819 | K110: 112481 | L110: 114731 | M110: 119550
B111: __ELT Allowance 1 | F111: ELT Allowance 1 | G111: 2570 | H111: 2609 | I111: 2648 | J111: 2689 | K111: 2729 | L111: 2784 | M111: 2901
B112: __ELT Allowance 2 | F112: ELT Allowance 2 | G112: 4313 | H112: 4378 | I112: 4444 | J112: 4512 | K112: 4580 | L112: 4672 | M112: 4868
B113: __ELT Allowance 3 | F113: ELT Allowance 3 | G113: 5920 | H113: 6009 | I113: 6099 | J113: 6192 | K113: 6285 | L113: 6411 | M113: 6680
B114: STF_Scholarly Teaching Fellow A_3 | D114: STF | E114: Scholarly Teaching Fellow A | F114: 3 | G114: 73423 | H114: 75423 | I114: 76554 | J114: 78102 | K114: 79274 | L114: 80859 | M114: 82603.508
B115: STF_Scholarly Teaching Fellow A_4 | D115: STF | E115: Scholarly Teaching Fellow A | F115: 4 | G115: 77187 | H115: 79187 | I115: 80375 | J115: 81981 | K115: 83211 | L115: 84875 | M115: 86705.862
B116: STF_Scholarly Teaching Fellow A_5 | D116: STF | E116: Scholarly Teaching Fellow A | F116: 5 | G116: 80246 | H116: 82246 | I116: 83480 | J116: 85132 | K116: 86409 | L116: 88137 | M116: 90038.178
B117: STF_Scholarly Teaching Fellow A_6 | D117: STF | E117: Scholarly Teaching Fellow A | F117: 6 | G117: 83307 | H117: 85307 | I117: 86587 | J117: 88286 | K117: 89610 | L117: 91402 | M117: 93373.62
B118: STF_Scholarly Teaching Fellow A_7 | D118: STF | E118: Scholarly Teaching Fellow A | F118: 7 | G118: 86368 | H118: 88368 | I118: 89694 | J118: 91439 | K118: 92811 | L118: 94667 | M118: 96709.062
B119: STF_Scholarly Teaching Fellow A_8 | D119: STF | E119: Scholarly Teaching Fellow A | F119: 8 | G119: 89425 | H119: 91425 | I119: 92796 | J119: 94588 | K119: 96007 | L119: 97927 | M119: 100039.294
B120: STF_Scholarly Teaching Fellow B_1 | D120: STF | E120: Scholarly Teaching Fellow B | F120: 1 | G120: 94135 | H120: 96135 | I120: 97577 | J120: 99441 | K120: 100933 | L120: 102952 | M120: 105172.186
B121: STF_Scholarly Teaching Fellow B_2 | D121: STF | E121: Scholarly Teaching Fellow B | F121: 2 | G121: 97666 | H121: 99666 | I121: 101161 | J121: 103078 | K121: 104624 | L121: 106716 | M121: 109018.208
B122: STF_Scholarly Teaching Fellow B_3 | D122: STF | E122: Scholarly Teaching Fellow B | F122: 3 | G122: 101190 | H122: 103190 | I122: 104738 | J122: 106709 | K122: 108310 | L122: 110476 | M122: 112859.02
B123: STF_Scholarly Teaching Fellow B_4 | D123: STF | E123: Scholarly Teaching Fellow B | F123: 4 | G123: 104724 | H123: 106724 | I123: 108325 | J123: 110350 | K123: 112005 | L123: 114245 | M123: 116709.21
B124: STF_Scholarly Teaching Fellow B_5 | D124: STF | E124: Scholarly Teaching Fellow B | F124: 5 | G124: 108251 | H124: 110251 | I124: 111905 | J124: 113984 | K124: 115694 | L124: 118008 | M124: 120553.148
B125: STF_Scholarly Teaching Fellow B_6 | D125: STF | E125: Scholarly Teaching Fellow B | F125: 6 | G125: 111788 | H125: 113788 | I125: 115495 | J125: 117627 | K125: 119391 | L125: 121779 | M125: 124405.422
B126: Agreed Salary__ | D126: Agreed Salary | G126: ='Eff Jul 23 - Continuing FT'!$E$28 -> 0 | H126: ='Eff Jul 23 - Continuing FT'!$E$28 -> 0 | I126: ='Eff Jul 23 - Continuing FT'!$E$28 -> 0 | J126: ='Eff Jul 23 - Continuing FT'!$E$28 -> 0 | K126: ='Eff Jul 23 - Continuing FT'!$E$28 -> 0 | L126: ='Eff Jul 23 - Continuing FT'!$E$28 -> 0

Sheet BE_Lookup (hidden)
E1: Drop Down Lookup
H2: Category Lookup | I2: Sub-type Lookup | K2: Classification Lookup
E3: Salary Plan Code | H3: Category | I3: Academic | J3: Professional | K3: List_ACA | L3: List_HEO | M3: List_Snr | N3: List_ELT | O3: List_STF | P3: List_AgreedSal
E4: Academic | F4: ACA | H4: Academic | I4: Academic | J4: HEO | K4: LEVEL A | L4: HEO Level 1 | M4: Senior Manager 1 | N4: English Language Teachers A-C | O4: Scholarly Teaching Fellow A | P4: Agreed Salary
E5: Scholarly Teaching Fellow | F5: STF | H5: Professional | I5: Scholarly Teaching Fellow | J5: Senior Manager | K5: LEVEL B | L5: HEO Level 2 | M5: Senior Manager 2 | O5: Scholarly Teaching Fellow B
E6: HEO | F6: HEO | H6: Agreed Salary | J6: English Language Teacher | K6: LEVEL C | L6: HEO Level 3 | M6: Senior Manager 3
E7: Senior Manager | F7: SNR | K7: LEVEL D | L7: HEO Level 4
E8: English Language Teacher | F8: ELT | K8: LEVEL E | L8: HEO Level 5
L9: HEO Level 5/6
L10: HEO Level 6
L11: HEO Level 7
L12: HEO Level 8
L13: HEO Level 9
L14: HEO Level 10
E17: Salary Step Lookup | J17: =IF($G$15=BE_Lookup!$H$18, LU_LvlA, IF($G$15=BE_Lookup!$I$18, LU_LvlB, IF($G$15=BE_Lookup!$J$18, LU_LvlC, IF($G$15=BE_Lookup!$K$18, LU_LvlD, IF($G$15=BE_Lookup!$L$18, LU_LvlE, IF($G$15=BE_Lookup!$H$28, LU_Lvl1, IF($G$15=BE_Lookup!$I$28, LU_lvl2, IF($G$15=BE_Lookup!$J$28, LU_lvl3, IF($G$15=BE_Lookup!$K$28, LU_LVL4, IF($G$15=BE_Lookup!$L$28, LU_LVL5, IF($G$15=BE_Lookup!$M$28, LU_LVL56, IF($G$15=BE_Lookup!$N$28, LU_LVL6, IF($G$15=BE_Lookup!$O$28, LU_LVL7, IF($G$15=BE_Lookup!$P$28, LU_LVL8, IF($G$15=BE_Lookup!$Q$28, LU_LVL9, IF($G$15=BE_Lookup!$R$28, LU_LVL10, IF($G$15=BE_Lookup!$H$37, LU_ELT, IF($G$15=BE_Lookup!$I$37, LU_STF, IF($G$15=BE_Lookup!$K$37, LU_DS, ""))))))))))))))))))) -> 
H18: LEVEL A | I18: LEVEL B | J18: LEVEL C | K18: LEVEL D | L18: LEVEL E
E19: ACA_LEVEL A | F19: LU_LVLA | H19: 1 | I19: 1 | J19: 1 | K19: 1 | L19: 1
E20: ACA_LEVEL B | F20: LU_LVLB | H20: 2 | I20: 2 | J20: 2 | K20: 2
E21: ACA_LEVEL C | F21: LU_LVLC | H21: 3 | I21: 3 | J21: 3 | K21: 3
E22: ACA_LEVEL D | F22: LU_LVLD | H22: 4 | I22: 4 | J22: 4 | K22: 4
E23: ACA_LEVEL E | F23: LU_LVLE | H23: 5 | I23: 5 | J23: 5
E24: HEO_HEO Level 1 | F24: LU_LVL1 | H24: 6 | I24: 6 | J24: 6
E25: HEO_HEO Level 2 | F25: LU_LVL2 | H25: 7
E26: HEO_HEO Level 3 | F26: LU_LVL3 | H26: 8
E27: HEO_HEO Level 4 | F27: LU_LVL4
E28: HEO_HEO Level 5 | F28: LU_LVL5 | H28: HEO Level 1 | I28: HEO Level 2 | J28: HEO Level 3 | K28: HEO Level 4 | L28: HEO Level 5 | M28: HEO Level 5/6 | N28: HEO Level 6 | O28: HEO Level 7 | P28: HEO Level 8 | Q28: HEO Level 9 | R28: HEO Level 10
E29: HEO_HEO Level 5/6 | F29: LU_LVL56 | H29: 1 | I29: 1 | J29: 1 | K29: 1 | L29: 1 | M29: 1 | N29: 1 | O29: 1 | P29: 1 | Q29: 1 | R29: 1
E30: HEO_HEO Level 6 | F30: LU_LVL6 | H30: 2 | I30: 2 | J30: 2 | K30: 2 | L30: 2 | M30: 2 | N30: 2 | O30: 2 | P30: 2 | Q30: 2 | R30: 2
E31: HEO_HEO Level 7 | F31: LU_LVL7 | H31: 3 | I31: 3 | J31: 3 | K31: 3 | L31: 3 | M31: 3 | N31: 3 | O31: 3 | P31: 3 | Q31: 3 | R31: 3
E32: HEO_HEO Level 8 | F32: LU_LVL8 | H32: 4 | I32: 4 | J32: 4 | K32: 4 | L32: 4 | M32: 4 | N32: 4 | O32: 4 | P32: 4
E33: HEO_HEO Level 9 | F33: LU_LVL9 | H33: 5 | I33: 5 | J33: 5 | M33: 5 | O33: 5 | P33: 5
E34: HEO_HEO Level 10 | F34: LU_LVL10 | H34: 6 | I34: 6 | J34: 6 | M34: 6
E35: SNR_Senior Manager 1 | F35: LU_Snr | H35: 7 | I35: 7 | J35: 7 | M35: 7
E36: SNR_Senior Manager 2 | F36: LU_Snr | J36: 8
E37: SNR_Senior Manager 3 | F37: LU_Snr | H37: English Language Teachers A-C | I37: Scholarly Teaching Fellow A | J37: Scholarly Teaching Fellow B | K37: Director of Studies
E38: ELT_English Language Teachers A-C | F38: LU_ELT | H38: 1 | I38: 3 | J38: 1 | K38: 1
E39: Director of Studies__ | F39: LU_DS | H39: 2 | I39: 4 | J39: 2 | K39: 2
E40: STF_Scholarly Teaching Fellow A | F40: LU_STFA | H40: 3 | I40: 5 | J40: 3 | K40: 3
E41: STF_Scholarly Teaching Fellow B | F41: LU_STFB | H41: 4 | I41: 6 | J41: 4 | K41: 4
E42: Agreed Salary_ | H42: 5 | I42: 7 | J42: 5
H43: 6 | I43: 8 | J43: 6
H44: 7
H45: 8
H46: 9
H47: 10
H48: 11
H49: 12
E52: Super Lookup
E53: Year | F53: < 2 Year | G53: > 2 Year | H53: Casuals
E54: 2017 | F54: 0.095 | G54: 0.17 | H54: 0.095
E55: 2018 | F55: 0.095 | G55: 0.17 | H55: 0.095
E56: 2019 | F56: 0.095 | G56: 0.17 | H56: 0.095
E57: 2020 | F57: 0.095 | G57: 0.17 | H57: 0.095
E58: 2021 | F58: 0.17 | G58: 0.17 | H58: 0.1
E59: 2022 | F59: 0.17 | G59: 0.17 | H59: 0.105
E60: 2023 | F60: 0.17 | G60: 0.17 | H60: 0.11
